Cogmind - Beta 16 @@@ ROGUE MODE // 2025.12.08 @ 20:48:03 Player: winnking222 Result: Destroyed by Y-45 Defender with Beam Rifle Performance ------------- Evolutions (0) 0 Regions Visited (3) 600 Robots Destroyed (28) 140 Value Destroyed (664) 664 Prototype IDs (12) 240 Alien Tech Used (0) 0 Bonus (0) 0 TOTAL SCORE: 1644 Bonus ------- None Cogmind --------- Core Integrity 0/250 Matter 243/300 Energy 151/200 System Corruption 0% Temperature Cool (35) Movement Rolling (120) Ox1 Location -9/Recycling Parts ------- > --- POWER (1) -------- Subdweller Power Source > --- PROPULSION (2) --- Subdweller Monowheel Subdweller Monowheel > --- UTILITY (2) ------ Large Storage Unit Light Armor Plating > --- WEAPON (2) ------- Assault Rifle Subdweller Machine Gun > --- INVENTORY (15) --- Meta Core High-capacity Matter Pod (200) Subdweller Optics Seismic Detector Light Armor Plating Light Armor Plating Light Armor Plating Light Armor Plating Subdweller Laser Subdweller Machine Gun Grenade Launcher Shrapnel Trap Peak State ------------ > --- POWER ------------ Ion Engine > --- PROPULSION ------- Compact Wheel Subdweller Monowheel > --- UTILITY ---------- Large Storage Unit Light Armor Plating > --- WEAPON ----------- Subdweller Machine Gun Subdweller Machine Gun > --- INVENTORY -------- Subdweller Power Source Meta Core High-capacity Matter Pod Subdweller Optics Seismic Detector Light Armor Plating Light Armor Plating Light Armor Plating Light Armor Plating Light Armor Plating Subdweller Laser Assault Rifle Light Assault Rifle Grenade Launcher Shrapnel Trap [Rating: 13] Favorites ----------- Power Ion Engine Engine Ion Engine Propulsion Light Treads Treads Light Treads Wheel Compact Wheel Utility Large Storage Unit Device Seismic Detector Storage Large Storage Unit Protection Light Armor Plating Weapon Assault Rifle Energy Gun Subdweller Laser Ballistic Gun Assault Rifle Launcher Grenade Launcher Build | -11 -10 -10 -9 ------- Run | Yrd Mat Sub Rec Slots Evolved . | . . . . Power . | . . . . Propulsion . | . . . . Utility . | . . . . Weapon . | . . . . Parts Attached 31 | 7 7 16 1 Power 4 | 1 . 2 1 Engine 4 | 1 . 2 1 Core . | . . . . Reactor . | . . . . Propulsion 7 | 2 . 5 . Treads 2 | 2 . . . Leg . | . . . . Wheel 5 | . . 5 . Hover . | . . . . Flight . | . . . . Utility 9 | 2 4 3 . Device 2 | 1 1 . . Storage 2 | 1 1 . . Processor . | . . . . Hackware . | . . . . Protection 5 | . 2 3 . Artifact . | . . . . Weapon 11 | 2 3 6 . Energy Gun 1 | . . 1 . Energy Cannon . | . . . . Ballistic Gun 9 | 2 3 4 . Ballistic Cannon . | . . . . Launcher 1 | . . 1 . Special Weapon . | . . . . Impact Weapon . | . . . . Slashing Weapon . | . . . . Piercing Weapon . | . . . . Special Melee Weapon . | . . . . Unidentified Prototypes . | . . . . Parts Lost 13 | . . 13 . Power 3 | . . 3 . Propulsion 4 | . . 4 . Utility 3 | . . 3 . Weapon 3 | . . 3 . Highest Loss Streak 5 | . . 5 . To Critical Strikes . | . . . . Average Backups 12 | 6 13 12 12 Power . | . 1 . 1 Propulsion 1 | 3 2 . . Utility 7 | . 8 8 7 Weapon 2 | . 1 3 3 Tool/Special . | . . . . Unused Backups 9 | . 2 . 7 Power . | . . . . Propulsion 2 | . 2 . . Utility 6 | . . . 6 Weapon . | . . . . Tool/Special 1 | . . . 1 Average Slot Usage (%) 99 | . 100 98 85 Engine 13 | . 14 13 . Treads 11 | . 28 3 . Wheel 16 | . . 24 28 Device 1 | . 5 . . Storage 14 | . 14 14 14 Protection 12 | . 8 13 14 Energy Gun 2 | . . 3 . Ballistic Gun 25 | . 28 24 28 Peak Build Rating 13 | 7 8 13 13 Average Rating 9 | 5 7 10 12 On Entrance 6 | . 7 8 11 Avg Prop Armor Cover (%) 3 | . . 3 . Naked Turns . | . . . . Heaviest Build 36 | 15 32 36 29 Greatest Support 40 | 40 40 40 20 Greatest Overweight (x) 9 | 1 . 9 1 Average Overweight (x) . | . . 1 1 Largest Inventory Capacity 15 | 8 15 15 15 Average Capacity 14 | 7 14 15 15 Most Carried 15 | 7 15 15 13 Average Carried 13 | 6 13 13 12 Final Capacity 15 | 8 15 15 15 Final Carried 15 | 7 15 13 12 Class Distribution -------------------- 100% | Mutant Dominant Class ---------------- Mutant | -10/Materials Mutant | -10/Subcaves Mutant | -9/Recycling Resources | -11 -10 -10 -9 ----------- Run | Yrd Mat Sub Rec Matter Collected 1320 | 387 377 556 . Remotely . | . . . . Salvage Created 948 | 180 361 407 . Parts 66 | 12 23 31 . Haulers Intercepted 1 | . 1 . . Recyclers Shooed . | . . . . Parts Field Recycled . | . . . . Retrieved Matter . | . . . . Parts Self-Destructed 16 | . . 16 . Prevented . | . . . . Parts Restored . | . . . . Kills | -11 -10 -10 -9 ------- Run | Yrd Mat Sub Rec Combat Hostiles Destroyed 18 | . 7 11 . Guns 16 | . 7 9 . AOE 2 | . . 2 . Classes Destroyed 7 | 2 4 1 . Tunneler 5 | 5 . . . Hauler 1 | . 1 . . Recycler 1 | 1 . . . Watcher 3 | . 3 . . Swarmer 5 | . 3 2 . Grunt 6 | . 4 2 . Subdweller 7 | . . 7 . Best Kill Streak 3 | 2 3 3 . Combat Bots Only 3 | . 3 3 . Max Kills in Single Turn 2 | 1 1 2 . Gunslinging . | . . . . Exploded 2 | . . 2 . Melee . | . . . . Uniques/NPCs Destroyed . | . . . . Combat | -11 -10 -10 -9 -------- Run | Yrd Mat Sub Rec Hostile Shots Fired 165 | . 45 117 3 Missed 43 | . 12 30 1 Hits 122 | . 33 87 2 Projectile 122 | . 33 87 2 Critical Strikes 4 | . . 3 1 Damage Taken 1762 | . 376 1357 29 Core 256 | . 66 176 14 Absorbed by Shields . | . . . . Core Remaining (%) 100 | 100 . . . Volleys Fired 155 | 25 51 77 2 Largest 2 | 2 2 2 2 Hottest 80 | 40 40 80 50 Shots Fired 299 | 50 102 143 4 Gun 296 | 50 102 140 4 Cannon . | . . . . Launcher 3 | . . 3 . Special . | . . . . Kinetic 280 | 50 102 124 4 Thermal 16 | . . 16 . Explosive 3 | . . 3 . Electromagnetic . | . . . . Robot Hit Streak 10 | 6 9 10 3 Robot Miss Streak 3 | 2 3 3 3 Penetration Max . | . . . . Secondary Targets 1 | . . 1 . Max Gunslinging Chain 1 | . . 1 . Shots Hit Robots 180 | 35 69 75 1 Core Hits 54 | 7 21 26 . Critical Kills 1 | 1 . . . Critical Parts Destroyed . | . . . . Critical Strikes 1 | 1 . . . Destroy 1 | 1 . . . Melee Attacks . | . . . . Impact . | . . . . Slashing . | . . . . Piercing . | . . . . Sneak Attacks . | . . . . Combat Hostiles . | . . . . Follow-up Attacks . | . . . . Damage Inflicted 2168 | 432 875 839 22 Guns 2094 | 432 863 777 22 Cannons . | . . . . Explosions 62 | . . 62 . Melee . | . . . . Ramming 12 | . 12 . . Kinetic 1973 | 432 863 656 22 Thermal 121 | . . 121 . Explosive 62 | . . 62 . Electromagnetic . | . . . . Impact . | . . . . Slashing . | . . . . Piercing . | . . . . Highest Corruption . | . . . . Average Corruption . | . . . . Corruption Purged . | . . . . Corruption Blocked . | . . . . Overload Shots . | . . . . Overflow Damage . | . . . . Projectiles . | . . . . Explosions . | . . . . Melee . | . . . . Knockbacks 1 | . 1 . . Impact 1 | . 1 . . Kinetic . | . . . . Secondary . | . . . . Self-Inflicted Damage 25 | . . 25 . Shots 2 | . . 2 . Rammed 1 | . 1 . . Targets Rammed 1 | . 1 . . Kicked . | . . . . Crushed . | . . . . Highest Temperature 25 | . 25 6 8 Average Temperature 6 | . 6 4 8 Received Heat Transfer 531 | . 183 312 36 Siege Activations . | . . . . Martial Activations . | . . . . Shielding Activations . | . . . . Robots Disrupted . | . . . . Combat Hostiles . | . . . . Robots Corrupted . | . . . . Combat Hostiles . | . . . . Parts Fried . | . . . . Impact Corruptions . | . . . . Robots Melted . | . . . . Combat Hostiles . | . . . . Parts Melted . | . . . . Heat Transferred 150 | . . 150 . Parts Sabotaged . | . . . . Parts Stolen . | . . . . Parts Stripped . | . . . . Power Chain Reactions . | . . . . Alert | -11 -10 -10 -9 ------- Run | Yrd Mat Sub Rec Maximum Alert Level . | . . . . Low Security (%) 100 | 100 100 . 100 Level 1 . | . . . . Level 2 . | . . . . Level 3 . | . . . . Level 4 . | . . . . Level 5 . | . . . . High Security . | . . . . Max Security . | . . . . Peak Influence 86 | 10 86 . 9 Initial 9 | . . . 9 Average 9 | . 12 . 9 Influence Increases 477 | 30 237 210 . Destroy 0b10 Robot/C 220 | . 140 80 . Destroy 0b10 Robot/NC 50 | 30 20 . . Destroy Leader 48 | . 38 10 . Successful Hack 23 | . 23 . . Destroy Structure 1 | . 1 . . Lose Combat Pursuer 135 | . 15 120 . Influence Decreases 468 | 30 187 240 11 Entered New Map 36 | . . 25 11 Time Decay 382 | 30 187 165 . Lost Part 50 | . . 50 . Squads Dispatched . | . . . . Investigation . | . . . . Extermination . | . . . . Reinforcement . | . . . . Assault . | . . . . Garrison . | . . . . Intercept . | . . . . Searches Triggered . | . . . . Construction Impeded . | . . . . Haulers Reinforced . | . . . . Active Scanning Responses . | . . . . Cargo Convoy Interrupts . | . . . . Stealth | -11 -10 -10 -9 --------- Run | Yrd Mat Sub Rec Distress Signals . | . . . . Communications Jammed . | . . . . Distress Signals . | . . . . Times Spotted 37 | . 16 19 2 Peak Tracking Total 3 | . 3 3 2 Tactical Retreats 5 | . 1 4 . Traps | -11 -10 -10 -9 ------- Run | Yrd Mat Sub Rec Traps Triggered . | . . . . Indirectly . | . . . . Trap Hack Attempts . | . . . . Triggered . | . . . . Disarmed . | . . . . Reprogrammed . | . . . . Reused . | . . . . Traps Extracted . | . . . . Installed . | . . . . Triggered . | . . . . Most Traps Carried 1 | . . 1 1 Machines | -11 -10 -10 -9 ---------- Run | Yrd Mat Sub Rec Machines Disabled 1 | . . 1 . Max in Single Turn 1 | . . 1 . Machines Repaired . | . . . . Machines Dismantled . | . . . . Machines Sabotaged . | . . . . Overloaded Fab Kills . | . . . . Hacking | -11 -10 -10 -9 --------- Run | Yrd Mat Sub Rec Machines Accessed 10 | . 7 3 . Terminals 7 | . 7 . . Fabricators . | . . . . Repair Stations . | . . . . Recycling Units . | . . . . Scanalyzers . | . . . . Garrison Access . | . . . . Total Hacks 25 | . 22 3 . Successful 21 | . 18 3 . Failed 4 | . 4 . . Catastrophic . | . . . . Database Lockouts . | . . . . Manual 15 | . 15 . . Terminals 22 | . 22 . . Fabricators . | . . . . Repair Stations . | . . . . Recycling Units . | . . . . Scanalyzers . | . . . . Garrison Access . | . . . . Terminal Hacks 11 | . 8 3 . Part Schematic 2 | . 2 . . Open Door 1 | . . 1 . Emergency Access Points 1 | . 1 . . Alert Level 1 | . 1 . . Locate Traps 1 | . 1 . . Hauler Manifests 2 | . 2 . . Zone Layout 1 | . 1 . . Proto ID Catalog 1 | . . 1 . Release Object 1 | . . 1 . Fabricator Hacks . | . . . . Repair Station Hacks . | . . . . Recycling Unit Hacks . | . . . . Scanalyzer . | . . . . Garrison Access Hacks . | . . . . Unauthorized Hacks 10 | . 10 . . Terminals 10 | . 10 . . Botnet 5 | . 5 . . Skim 5 | . 5 . . Fabricators . | . . . . Repair Stations . | . . . . Recycling Units . | . . . . Scanalyzers . | . . . . Garrison Access . | . . . . Data Cores Recovered . | . . . . Used . | . . . . Hacking Detections 6 | . 6 . . Full Trace Events 1 | . 1 . . Feedback Events . | . . . . Feedback Blocked . | . . . . Robot Schematics Acquired . | . . . . Robots Built . | . . . . Authchips . | . . . . Time . | . . . . Total Robot Build Rating . | . . . . Part Schematics Acquired 2 | . 2 . . Parts Built . | . . . . Authchips . | . . . . Time . | . . . . Total Part Build Rating . | . . . . Part Studies Acquired . | . . . . Parts Repaired . | . . . . Time . | . . . . Parts Recycled . | . . . . Recycled Matter . | . . . . Retrieved Matter . | . . . . Retrieved Components . | . . . . Parts Scanalyzed . | . . . . Part Schematics Acquired . | . . . . Parts Damaged . | . . . . Bothacking | -11 -10 -10 -9 ------------ Run | Yrd Mat Sub Rec Used RIF Installer . | . . . . Robots Hacked . | . . . . Non-combat . | . . . . Combat . | . . . . Robot Hacks Applied . | . . . . Relay Couplers Released . | . . . . Fabnet Peak Effective % . | . . . . Robots Rewired . | . . . . Allies Hacked . | . . . . Hacks Repelled . | . . . . Allies | -11 -10 -10 -9 -------- Run | Yrd Mat Sub Rec Total Allies . | . . . . Largest Group . | . . . . Highest-Rated Group . | . . . . Highest-Rated Ally . | . . . . Total Orders . | . . . . Ally Attacks . | . . . . Total Damage . | . . . . Kills . | . . . . Allies Corrupted . | . . . . Allies Melted . | . . . . Intel | -11 -10 -10 -9 ------- Run | Yrd Mat Sub Rec Active Infowar (turns) 473 | 54 419 . . Seismic 473 | 54 419 . . Robot Analysis Total . | . . . . Derelict Logs Recovered . | . . . . Drone Launches . | . . . . Drone Recoveries . | . . . . Exploration | -11 -10 -10 -9 ------------- Run | Yrd Mat Sub Rec Turns Passed 3617 | 315 1070 2223 9 Spaces Moved 2263 | 146 539 1576 2 Core 18 | 13 . 5 . Treads 786 | 133 539 114 . Legs . | . . . . Wheels 1459 | . . 1457 2 Hover . | . . . . Flight . | . . . . Fastest Speed 50 | 50 160 105 120 Average Speed 133 | 151 160 123 120 Slowest Speed 500 | 160 160 500 120 Overloaded Moves . | . . . . Propulsion Burnouts . | . . . . Robots Hopped . | . . . . Potential Cave-ins . | . . . . Cave-ins Triggered . | . . . . Exploration Rate (%) 44 | 9 96 71 2 Regions Visited 3 Branch Regions 2 Pre-discovered Areas . | . . . . Known Exits Taken 2 | . 1 1 . Unknown Exits Taken 1 | 1 . . . Scrap Searched . | . . . . Spaces Dug 6 | . . 6 . Terrain Destroyed 25 | . . 25 . Melee . | . . . . Projectile 6 | . . 6 . AOE 19 | . . 19 . Terrain Rammed . | . . . . Walls Destroyed . | . . . . Machines Disabled . | . . . . Actions | -11 -10 -10 -9 --------- Run | Yrd Mat Sub Rec Total 2569 | 190 646 1726 7 Wait 69 | . 25 42 2 Move 2260 | 145 538 1575 2 Hop . | . . . . Pick Up 36 | 13 13 10 . Fast Attach 1 | 1 . . . Attach 19 | 6 . 12 1 Detach . | . . . . Swap 17 | . 9 8 . Drop 10 | . 9 1 . Fire 155 | 25 51 77 2 Melee . | . . . . Ram . | . . . . Kick . | . . . . Crush 1 | . 1 . . Escape Stasis . | . . . . Rewire . | . . . . Trap . | . . . . Miscellaneous 1 | . . 1 . Route ------- -11/Scrapyard -10/Materials (discovered 5 exits: *Mat x3 / [*Min] / *Sub) -10/Subcaves (discovered 2 exits: *Rec / [*Scr]) -9/Recycling History --------- Turn | Location | Event 29 | -11/Scrapyard | Discovered new exit (range 16) 316 | -11/Scrapyard | Entered Materials 317 | -10/Materials | Build established: Mutant 578 | -10/Materials | Discovered new exit (range 13) 680 | -10/Materials | Discovered new exit (range 9) 750 | -10/Materials | Learned Storage emergency access door positions 786 | -10/Materials | Identified exit to Subcaves 839 | -10/Materials | Identified exit to Materials 857 | -10/Materials | Learned Storage trap positions 887 | -10/Materials | Learned location of 1 exit from Storage 1386 | -10/Materials | Entered Subcaves 1387 | -10/Subcaves | Approached by a straggling Scientist 1387 | -10/Subcaves | Identified exit to Recycling 1626 | -10/Subcaves | Core integrity fell below 50% 2207 | -10/Subcaves | Core integrity fell below 20% 2257 | -10/Subcaves | Lost 5 parts (2p1n1u1w) 2420 | -10/Subcaves | Shifting Twisted Machinery released Piercing Trap 2515 | -10/Subcaves | A swath of the cavern ceiling suddenly collapsed 2672 | -10/Subcaves | Disturbed a concealed Subdweller 2824 | -10/Subcaves | Visited 4L-MR0's lab 2836 | -10/Subcaves | Found Prototype Power Core 2840 | -10/Subcaves | Identified Meta Core 3380 | -10/Subcaves | Released subatomizers from SUBCON Basin 3563 | -10/Subcaves | Ambushed by Subdweller buried in earth 3609 | -10/Subcaves | Entered Recycling 3612 | -9/Recycling | Lost 3 parts (1n1u1w) 3618 | -9/Recycling | Destroyed by Y-45 Defender with Beam Rifle Last Messages --------------- >>Release Inventory Accessing inventory controls... Collection purity confirmed 100%... Ejecting SUBCON Basin... Delivery behind schedule, handle with care! 03380_ Released subatomizers from SUBCON Basin. 03508_ Ion Engine destroyed. [Achievement: Do Not Disturb] 03563_ Com. Wheel destroyed. 03563_ Destroyed Com. Wheel. 03564_ 70-C6I(R): "NOSTUCKSUB!" 03575_ Lgt. Armor Plating destroyed. 03581_ Lgt. Assault Rifle destroyed. 03584_ 70-C6I(R) destroyed. 03587_ Acquired 55 matter. 03597_ Acquired Sub. Monowheel. LOCATION=RECYCLING GOAL=ESCAPE 03616_ Y-45 Defender springs to life. 03618_ Critical hit (Burn: +37). Map ----- +----------------------------------------------------+ | ???????????????????????????????? | | ???????????????????????????????? | | ???????????????????????????????? | | ???????????????????????????????? | | ???????????????????????????????? | | ???????????????????????????????? | | ???????????????????????????????? | | ???????????????????????????????? | | ???????????????????????????????? | | ????? ???????????????????????? | | ????? ???????????????????????? | | ????#Y Y??????????????????????? | | ????# "??????????????????????? | | ????# #??????????????????????? | | ????# #??????????????????????? | | ????# #??????????????????????? | | ????# #??????????????????????? | | ????# #??????????????????????? | | ????# #??????????????????????? | | ???## #??????????????????????? | | ???? +??????????????????????? | | ????#Y #??????????????????????? | | ????# #??????????????????????? | | ????# #??????????????????????? | | ????# #??????????????????????? | | ????# @#??????????????????????? | | ????#####??????????????????????? | | ???????????????????????????????? | | ???????????????????????????????? | | ???????????????????????????????? | | ???????????????????????????????? | | ???????????????????????????????? | | ???????????????????????????????? | | ???????????????????????????????? | | ???????????????????????????????? | | ???????????????????????????????? | | ???????????????????????????????? | | | | | | | | | | | | | | | | | | | | | | | | | | | +----------------------------------------------------+ Best States ------------- Heat Dissipation 25 Energy Generation 15 Energy Capacity 250 Matter Stores 300 Matter Capacity 300 Sight Range 16 Terrain Scan Density 10 Armor Coverage 150 Evasion (%) 50 Recoil Reduction 2 Item Schematics ----------------- Hcp. Storage Unit | -10/Materials | Hacked Huge Storage Unit | -10/Materials | Hacked Robot Schematics ------------------ None Fabricated ------------ Nothing Repaired ---------- Nothing Studied --------- None Alien Tech Used ----------------- None Achievements -------------- Do Not Disturb Challenges ------------ None Game ------ Seed ThermicPortableBlasthammer Manual? 0 Play Time 00:16:44 Cumulative 199.3 hours Start 2025.12.08 @ 20:31:21 End 2025.12.08 @ 20:48:03 Sessions 1 Manual Loads 0 Difficulty Rogue Special Mode None Game No. 283 Rogue 283 Adventurer 0 Explorer 0 Win Type - Total 3 Types 2/0/0/1/0/0/0/0/0/0 Lore% 73 Gallery% 72 Achievement% 42 Wizard Run 0 Options --------- Layout 0 ASCII 0 Keyboard 0 Movement Mouse Keybinds 0 Fullscreen 1 Font 16/SmallcapsGlow Map View 75x55 Zoom Use 0% Tactical HUD 1 Map Filters NONE Filters NONE Steam 1 RUN: a9e39b04-7bce-4dec-ab41-410f1d0785fd